bitfinex-derivatives/quotes_BTCF0:USTF0_20260107
["timestamp","ask_amount","ask_price","bid_price","bid_amount"]
[1767799332489,0.08805437,91402.0,91371.0,0.09312]
[1767799332490,0.09312,91403.0,91375.0,0.09211665]
[1767799332691,0.00218798,91409.0,91383.0,0.010952]
[1767799332882,0.010949,91407.0,91380.0,0.010952]
[1767799333183,0.010949,91407.0,91371.0,0.09312]
[1767799333184,0.08805437,91407.0,91371.0,0.09312]
[1767799333390,0.08805437,91407.0,91362.0,0.09211665]
[1767799333391,0.08805437,91392.0,91354.0,0.010956]
[1767799333584,0.01095,91397.0,91355.0,0.09312]
[1767799333585,0.08805437,91386.0,91355.0,0.09312]
[1767799333785,0.08805437,91386.0,91363.0,0.010954]
[1767799333993,0.08805437,91386.0,91359.0,0.010955]
[1767799334583,0.08805437,91386.0,91350.0,0.1473249]
[1767799334584,0.08805437,91386.0,91346.0,0.09211665]
[1767799334792,0.09312,91394.0,91346.0,0.09312]
[1767799334793,0.010955,91357.0,91346.0,0.09312]
[1767799335002,0.010955,91357.0,91339.0,0.09312]
[1767799335198,0.08805437,91359.0,91325.0,0.09223516]
[1767799335415,0.010956,91354.0,91325.0,0.09223516]
[1767799335598,0.09901037,91354.0,91326.0,0.09312]
[1767799335789,0.08805437,91354.0,91326.0,0.09312]
[1767799336188,0.18117437,91354.0,91325.0,0.00011851]
[1767799336490,0.08805437,91339.0,91314.0,0.09312]
[1767799336689,0.08805437,91339.0,91316.0,0.01096]
[1767799336993,0.08805437,91339.0,91305.0,0.09211665]
[1767799337188,0.09901137,91339.0,91310.0,0.010961]
[1767799337384,0.00011692,91338.0,91313.0,0.01096]
[1767799337597,0.00011692,91338.0,91318.0,0.01096]
[1767799337799,0.00011692,91338.0,91318.0,0.10408]
[1767799338003,0.00011692,91338.0,91318.0,0.09312]
[1767799338186,0.00011692,91338.0,91318.0,0.10408]
[1767799338701,0.010956,91349.0,91318.0,0.10408]
[1767799339003,0.09312,91354.0,91324.0,0.10307565]
[1767799339297,0.09312,91364.0,91330.0,0.09211665]
[1767799339490,0.09312,91364.0,91313.0,0.01096]
[1767799339491,0.010957,91343.0,91316.0,0.10307665]
[1767799339691,0.1473249,91350.0,91321.0,0.010959]
[1767799339898,0.010956,91352.0,91321.0,0.010959]
[1767799340100,0.04454496,91359.0,91320.0,0.09211665]
[1767799340497,0.04454496,91359.0,91320.0,0.10307665]
[1767799340697,0.08805437,91357.0,91320.0,0.09211665]
[1767799340999,0.010956,91347.0,91320.0,0.09211665]
[1767799341200,0.010956,91351.0,91321.0,0.01096]
[1767799341395,0.08805437,91348.0,91312.0,0.010961]
[1767799341604,0.010958,91331.0,91302.0,0.010962]
[1767799341799,0.08805437,91337.0,91303.0,0.09316]
[1767799341996,0.1473249,91330.0,91300.0,0.09211665]
[1767799342200,0.08805437,91330.0,91301.0,0.09316]
[1767799342500,0.08805437,91330.0,91302.0,0.09316]
[1767799342501,0.010959,91326.0,91302.0,0.09316]
[1767799342692,0.08805437,91330.0,91302.0,0.09316]
[1767799342887,0.09316,91336.0,91302.0,0.09316]
[1767799343104,0.010959,91328.0,91302.0,0.19623865]
[1767799343299,0.08805437,91332.0,91302.0,0.09316]
[1767799343506,0.104118,91336.0,91288.0,0.55582435]
[1767799343507,0.08805437,91319.0,91288.0,0.04146435]
[1767799343694,0.08805437,91319.0,91292.0,0.010963]
[1767799343695,0.01096,91317.0,91292.0,0.010963]
[1767799343893,0.08805437,91319.0,91292.0,0.010963]
[1767799344094,0.01096,91317.0,91292.0,0.010963]
[1767799344299,0.08805437,91319.0,91289.0,0.09316]
[1767799344300,0.01096,91314.0,91289.0,0.09316]
[1767799344703,0.08805437,91319.0,91289.0,0.09316]
[1767799345002,0.010962,91302.0,91289.0,0.09316]
[1767799345302,0.09316,91322.0,91289.0,0.09316]
[1767799345303,0.08805437,91323.0,91291.0,0.04146435]
[1767799345495,0.09316,91324.0,91295.0,0.10307965]
[1767799345696,0.09316,91325.0,91297.0,0.10307865]
[1767799345893,0.01096,91319.0,91291.0,0.010963]
[1767799346103,0.09901437,91319.0,91291.0,0.010963]
[1767799346298,0.09901437,91316.0,91289.0,0.09316]
[1767799346506,0.010961,91310.0,91283.0,0.04146435]
[1767799346807,0.09901537,91311.0,91284.0,0.104124]
[1767799347004,0.09901537,91311.0,91285.0,0.09316]
[1767799347205,0.09316,91314.0,91289.0,0.010963]
[1767799347406,0.01096,91316.0,91289.0,0.010963]
[1767799347704,0.09316,91315.0,91286.0,0.09211665]
[1767799347904,0.09316,91315.0,91287.0,0.10308065]
[1767799348206,0.010958,91332.0,91286.0,0.04146435]
[1767799348207,0.08805437,91332.0,91299.0,0.09211665]
[1767799348400,0.06090477,91351.0,91318.0,0.01096]
[1767799348401,0.09316,91335.0,91318.0,0.01096]
[1767799348598,0.09316,91341.0,91316.0,0.01096]
[1767799348805,0.09316,91344.0,91319.0,0.01096]
[1767799349011,0.104117,91343.0,91315.0,0.19623665]
[1767799349308,0.09316,91343.0,91315.0,0.18527665]
[1767799349510,0.010958,91334.0,91315.0,0.09316]
[1767799349908,0.08805437,91342.0,91315.0,0.09316]
[1767799350098,0.08805437,91340.0,91315.0,0.09316]
[1767799350599,0.08805437,91340.0,91319.0,0.01096]
[1767799350795,0.08805437,91340.0,91315.0,0.09316]
[1767799350796,0.09316,91343.0,91315.0,0.09316]
[1767799351010,0.09316,91343.0,91315.0,0.10412]
[1767799351395,0.09316,91343.0,91315.0,0.18527665]
[1767799351596,0.010957,91345.0,91319.0,0.133581]
[1767799351804,0.010958,91335.0,91315.0,0.09316]
[1767799352004,0.010958,91336.0,91308.0,0.09333982]
[1767799352212,0.010958,91334.0,91310.0,0.010961]
[1767799352400,0.08880297,91343.0,91293.0,0.09333982]
[1767799352401,0.08880297,91329.0,91293.0,0.09333982]
[1767799352606,0.08880297,91329.0,91294.0,0.09316]
[1767799352817,0.010962,91303.0,91279.0,0.09333982]
[1767799353007,0.08880297,91309.0,91286.0,0.09316]
[1767799353211,0.010961,91307.0,91287.0,0.09316]
[1767799353415,0.010961,91308.0,91287.0,0.09316]
[1767799353714,0.08880297,91309.0,91287.0,0.09316]
[1767799354014,0.010961,91306.0,91287.0,0.09316]
[1767799354710,0.010961,91307.0,91287.0,0.09316]
[1767799354908,0.08880297,91309.0,91285.0,0.010964]
[1767799355449,0.08880297,91309.0,91269.0,0.01107681]
[1767799355450,0.09316,91313.0,91269.0,0.00011081]
[1767799355451,0.08880297,91289.0,91269.0,0.00011081]
[1767799355708,0.08880297,91279.0,91263.0,0.010966]
[1767799355912,0.09316,91285.0,91259.0,0.0955314]
[1767799356116,0.09316,91285.0,91263.0,0.010966]
[1767799356308,0.09316,91288.0,91262.0,0.04088127]
[1767799356612,0.0001124,91287.0,91265.0,0.09333982]
[1767799356809,0.0001124,91287.0,91277.0,0.010965]
[1767799357007,0.09316,91304.0,91286.0,0.010964]
[1767799357316,0.08880297,91310.0,91281.0,0.09316]
[1767799357317,0.010962,91305.0,91281.0,0.09316]
[1767799357612,0.18196297,91307.0,91280.0,0.09316]
[1767799357816,0.0932,91314.0,91285.0,0.09333982]
[1767799358007,0.0932,91313.0,91286.0,0.09333982]
[1767799358313,0.0932,91313.0,91293.0,0.010963]
[1767799358612,0.08880297,91317.0,91293.0,0.010963]
[1767799358814,0.01096,91315.0,91290.0,0.010963]
[1767799359008,0.08880297,91317.0,91290.0,0.010963]
[1767799359223,0.0932,91316.0,91290.0,0.010963]
[1767799359405,0.0932,91316.0,91286.0,0.10430382]
[1767799359605,0.010961,91312.0,91286.0,0.10430382]
[1767799359814,0.010961,91312.0,91285.0,0.04088127]
[1767799359815,0.08880297,91311.0,91280.0,0.09316]
[1767799360114,0.010961,91306.0,91281.0,0.010964]
[1767799360311,0.010961,91309.0,91281.0,0.010964]
[1767799360620,0.01096,91315.0,91291.0,0.010963]
[1767799360802,0.0932,91314.0,91293.0,0.010963]
[1767799361001,0.010961,91312.0,91291.0,0.18653982]
[1767799361204,0.01096,91315.0,91291.0,0.18653982]
[1767799361402,0.0932,91322.0,91300.0,0.010962]
[1767799361711,0.010961,91308.0,91285.0,0.010964]
[1767799361901,0.01096,91318.0,91290.0,0.010963]
[1767799362098,0.01096,91316.0,91292.0,0.09333982]
[1767799362312,0.01096,91316.0,91293.0,0.010963]
[1767799362909,0.01096,91316.0,91292.0,0.09333982]
[1767799362910,0.0932,91318.0,91292.0,0.09333982]
[1767799363112,0.01096,91321.0,91297.0,0.010962]
[1767799363312,0.0932,91320.0,91297.0,0.010962]
[1767799363812,0.08880297,91335.0,91299.0,0.09333982]
[1767799364114,0.08880297,91332.0,91296.0,0.04088127]
[1767799364322,0.01096,91316.0,91293.0,0.010963]
[1767799364506,0.01096,91314.0,91292.0,0.010963]
[1767799364707,0.18200297,91320.0,91291.0,0.0932]
[1767799364708,0.19296297,91320.0,91291.0,0.0932]
[1767799364932,0.01096,91318.0,91291.0,0.0932]
[1767799365416,0.0932,91320.0,91300.0,0.010962]
[1767799366009,0.010959,91328.0,91300.0,0.4]
[1767799366217,0.18200297,91329.0,91298.0,0.13422109]
[1767799366419,0.010959,91328.0,91303.0,0.010962]
[1767799366811,0.18564006,91340.0,91319.0,0.01096]
[1767799367023,0.09683709,91343.0,91326.0,0.010959]
[1767799367214,0.09683709,91343.0,91313.0,0.10429982]
[1767799367215,0.08880297,91343.0,91316.0,0.01096]
[1767799367518,0.0932,91345.0,91316.0,0.01096]
[1767799367519,0.08880297,91333.0,91316.0,0.01096]
[1767799367921,0.08880297,91333.0,91313.0,0.10416]
[1767799368213,0.08880297,91343.0,91313.0,0.0932]
[1767799368515,0.08880297,91338.0,91313.0,0.0932]
[1767799368819,0.08880297,91334.0,91313.0,0.0932]
[1767799369408,0.0421929,91338.0,91296.0,0.09333982]
[1767799369409,0.08880297,91331.0,91296.0,0.09333982]
[1767799369720,0.0932,91342.0,91293.0,0.0932]
[1767799369721,0.08880297,91318.0,91293.0,0.0932]
[1767799369912,0.09683709,91334.0,91305.0,0.04088127]
[1767799370212,0.0932,91333.0,91310.0,0.10430082]
[1767799370415,0.08880297,91343.0,91326.0,0.010959]
[1767799370623,0.05883834,91354.0,91305.0,0.0932]
[1767799370624,0.0932,91342.0,91327.0,0.010959]
[1767799370809,0.0932,91347.0,91327.0,0.010959]
[1767799371009,0.0932,91348.0,91327.0,0.010959]
[1767799371304,0.0932,91348.0,91322.0,0.09333982]
[1767799371305,0.0932,91350.0,91333.0,0.010958]
[1767799371509,0.0932,91350.0,91323.0,0.10449276]
[1767799371720,0.0932,91350.0,91323.0,0.09333982]
[1767799372110,0.18200297,91350.0,91323.0,0.010959]
[1767799372522,0.18200297,91350.0,91318.0,0.0932]
[1767799372523,0.010957,91345.0,91322.0,0.010959]
[1767799372714,0.010956,91348.0,91324.0,0.010959]
[1767799373022,0.18200297,91350.0,91324.0,0.010959]
[1767799373023,0.0932,91350.0,91325.0,0.09333982]
[1767799373209,0.0932,91350.0,91329.0,0.010958]
[1767799373514,0.08880297,91359.0,91329.0,0.010958]
[1767799373515,0.09316,91354.0,91330.0,0.09333982]
[1767799373723,0.09316,91354.0,91331.0,0.010958]
[1767799373911,0.09316,91354.0,91330.0,0.09333982]
[1767799374811,0.09316,91354.0,91338.0,0.010957]
[1767799375005,0.09316,91354.0,91330.0,0.09333982]
[1767799375321,0.08880297,91372.0,91342.0,0.09333982]
[1767799375621,0.08880297,91372.0,91343.0,0.09316]
[1767799375817,0.08880297,91372.0,91345.0,0.010957]
[1767799375818,0.010954,91371.0,91345.0,0.010957]
[1767799376120,0.010954,91366.0,91343.0,0.09316]
[1767799376308,0.08880297,91372.0,91343.0,0.09316]
[1767799376510,0.09975797,91359.0,91343.0,0.09316]
[1767799376909,0.08880297,91369.0,91343.0,0.09316]
[1767799377115,0.08880297,91369.0,91348.0,0.010956]
[1767799377312,0.010954,91370.0,91343.0,0.27270574]
[1767799377509,0.09316,91375.0,91344.0,0.09333982]
[1767799377714,0.18196297,91375.0,91344.0,0.00429582]
[1767799378019,0.010954,91368.0,91344.0,0.00429582]
[1767799378211,0.010955,91359.0,91343.0,0.09316]
[1767799378519,0.0421929,91374.0,91343.0,0.09316]
[1767799378520,0.08880297,91362.0,91343.0,0.09316]
[1767799379221,0.08880297,91362.0,91314.0,0.01096]
[1767799379222,0.08880297,91355.0,91317.0,0.04088127]
[1767799379415,0.08880297,91352.0,91319.0,0.04088127]
[1767799379616,0.08880297,91352.0,91330.0,0.010958]
[1767799379828,0.08880297,91352.0,91329.0,0.09316]
[1767799380021,0.010957,91345.0,91329.0,0.09316]
[1767799380215,0.08880297,91346.0,91329.0,0.09316]
[1767799380449,0.010957,91345.0,91329.0,0.09316]
[1767799380724,0.09316,91354.0,91333.0,0.010958]
[1767799380917,0.08880297,91355.0,91335.0,0.010958]
[1767799381217,0.08880297,91355.0,91323.0,0.09333982]
[1767799381218,0.010956,91352.0,91330.0,0.09316]
[1767799381417,0.08880297,91354.0,91331.0,0.010958]
[1767799381618,0.08880297,91354.0,91330.0,0.09316]
[1767799381619,0.010956,91352.0,91330.0,0.09316]
[1767799381813,0.08880297,91354.0,91330.0,0.09316]
[1767799382018,0.010956,91352.0,91330.0,0.09316]
[1767799382213,0.08880297,91354.0,91330.0,0.09316]
[1767799382407,0.08916604,91353.0,91330.0,0.09316]
[1767799382617,0.010956,91351.0,91330.0,0.09316]
[1767799382822,0.08916604,91353.0,91330.0,0.09316]
[1767799383021,0.010957,91340.0,91314.0,0.14160274]
[1767799383216,0.08916604,91342.0,91319.0,0.01096]
[1767799384116,0.010956,91350.0,91326.0,0.010959]
[1767799384415,0.10012204,91350.0,91319.0,0.04059827]
[1767799384622,0.10012104,91357.0,91326.0,0.04059827]
[1767799384815,0.10012104,91357.0,91338.0,0.010957]
[1767799384816,0.09316,91356.0,91338.0,0.010957]
[1767799385025,0.09316,91356.0,91332.0,0.04059827]
[1767799385225,0.09316,91356.0,91336.0,0.010958]
[1767799385414,0.09316,91356.0,91339.0,0.010957]
[1767799385618,0.08916604,91357.0,91339.0,0.010957]
[1767799386022,0.08916604,91357.0,91332.0,0.04059827]
[1767799386224,0.08916604,91357.0,91330.0,0.09316]
[1767799386225,0.08916604,91357.0,91334.0,0.010958]
[1767799386424,0.06064517,91364.0,91334.0,0.04059827]
[1767799386734,0.08916604,91361.0,91334.0,0.04059827]
[1767799387022,0.08916604,91361.0,91340.0,0.010957]
[1767799387231,0.08973899,91371.0,91338.0,0.04061489]
[1767799387419,0.09316,91371.0,91347.0,0.04061489]
[1767799387614,0.05961389,91374.0,91352.0,0.04061489]
[1767799387816,0.09316,91384.0,91368.0,0.010954]
[1767799388035,0.09316,91384.0,91360.0,0.09316]
[1767799388036,0.08973899,91384.0,91360.0,0.09316]
[1767799388215,0.08973899,91382.0,91360.0,0.09316]
[1767799388520,0.08973899,91380.0,91360.0,0.09316]
[1767799388913,0.08973899,91380.0,91355.0,0.010955]
[1767799388914,0.08973899,91371.0,91338.0,0.04061489]
[1767799389123,0.08973899,91371.0,91345.0,0.010957]
[1767799389423,0.010951,91391.0,91349.0,0.09507879]
[1767799389623,0.01095,91397.0,91367.0,0.04061489]
[1767799389924,0.08973899,91396.0,91373.0,0.010953]
[1767799390125,0.09316,91395.0,91369.0,0.05156889]
[1767799390429,0.08973899,91396.0,91370.0,0.04061489]
[1767799390725,0.08973899,91410.0,91378.0,0.13569368]
[1767799390926,0.08973899,91410.0,91368.0,0.09316]
[1767799390927,0.09192697,91409.0,91372.0,0.04061489]
[1767799391225,0.09192697,91409.0,91384.0,0.010952]
[1767799391424,0.09192697,91409.0,91376.0,0.010953]
[1767799391425,0.010949,91408.0,91376.0,0.010953]
[1767799391727,0.03970104,91409.0,91368.0,0.09316]
[1767799391917,0.08973899,91400.0,91369.0,0.04061489]
[1767799392229,0.08973899,91400.0,91368.0,0.09316]
[1767799392230,0.09316,91400.0,91376.0,0.04061489]
[1767799393030,0.08973899,91403.0,91376.0,0.04061489]
[1767799393231,0.08973899,91403.0,91384.0,0.010952]
[1767799393426,0.08973899,91403.0,91379.0,0.09316]
[1767799393633,0.09312,91405.0,91388.0,0.010951]
[1767799393926,0.09312,91405.0,91380.0,0.04061489]
[1767799393927,0.08973899,91408.0,91384.0,0.010952]
[1767799394130,0.09312,91407.0,91387.0,0.010952]
[1767799394331,0.08973899,91406.0,91382.0,0.010952]
[1767799394631,0.08973899,91406.0,91380.0,0.05156689]
[1767799394828,0.08973899,91403.0,91380.0,0.01111705]
[1767799395131,0.08973899,91403.0,91392.0,0.010951]
[1767799395330,0.08973899,91403.0,91388.0,0.010951]
[1767799395624,0.08973899,91403.0,91380.0,0.01105607]
[1767799395823,0.08973899,91403.0,91379.0,0.09316]
[1767799396014,0.08973899,91403.0,91379.0,0.1040972]
[1767799396220,0.08973899,91403.0,91387.0,0.010951]
[1767799396420,0.08973899,91403.0,91389.0,0.010951]
[1767799396624,0.00218798,91409.0,91380.0,0.04061489]
[1767799396820,0.00218798,91409.0,91382.0,0.04061489]
[1767799397019,0.09192697,91409.0,91382.0,0.04061489]
[1767799397432,0.09192697,91409.0,91388.0,0.010951]
[1767799397827,0.09192697,91409.0,91382.0,0.04061489]
[1767799398018,1.06802686,91450.0,91379.0,0.19917599]
[1767799398019,0.010947,91425.0,91388.0,0.04061489]
[1767799398327,0.010947,91424.0,91394.0,0.010951]
[1767799398527,0.09312,91425.0,91395.0,0.09312]
[1767799398931,0.09312,91425.0,91401.0,0.01095]
[1767799399130,0.09312,91425.0,91397.0,0.01095]
[1767799399327,0.010948,91416.0,91395.0,0.09312]
[1767799399527,0.04846106,91419.0,91395.0,0.09312]
[1767799399832,0.010949,91409.0,91395.0,0.09312]
[1767799400029,0.03751306,91419.0,91395.0,0.09312]
[1767799400030,0.08973899,91408.0,91395.0,0.09312]
[1767799400933,0.08973899,91408.0,91395.0,0.104071]
[1767799401123,0.08973899,91408.0,91397.0,0.01095]
[1767799401319,0.08973899,91408.0,91395.0,0.09312]
[1767799401929,0.09312,91420.0,91309.0,0.1203]
[1767799401930,0.08973899,91403.0,91374.0,0.09507879]
[1767799402234,0.08973899,91403.0,91375.0,0.04061489]
[1767799402424,0.08973899,91403.0,91376.0,0.09312]
[1767799402829,0.08973899,91403.0,91381.0,0.010952]
[1767799403134,0.08973899,91403.0,91380.0,0.010952]
[1767799403344,0.08973899,91397.0,91376.0,0.09312]
[1767799403633,0.08973899,91397.0,91377.0,0.010953]
[1767799403824,0.08973899,91397.0,91366.0,0.04061489]
[1767799404025,0.08973899,91394.0,91370.0,0.010954]
[1767799404426,0.08973899,91394.0,91370.0,0.02190802]
[1767799404626,0.08973899,91394.0,91370.0,0.010954]
[1767799404825,0.08973899,91394.0,91370.0,0.0222135]
[1767799405421,0.08973899,91392.0,91360.0,0.010955]
[1767799405627,0.08973899,91386.0,91361.0,0.09312]
[1767799405827,0.08973899,91400.0,91374.0,0.04061489]
[1767799406033,0.08973899,91400.0,91381.0,0.010952]
[1767799406539,0.08973899,91400.0,91384.0,0.010952]
[1767799407030,0.08973899,91400.0,91375.0,0.09312]
[1767799407536,0.08973899,91386.0,91363.0,0.010954]
[1767799407727,0.08973899,91386.0,91364.0,0.09312]
[1767799407925,0.08973899,91383.0,91357.0,0.010955]
[1767799408131,0.08973899,91379.0,91358.0,0.09312]
[1767799408524,0.08973899,91377.0,91358.0,0.09312]
[1767799408727,0.08973899,91375.0,91358.0,0.09312]
[1767799408923,0.08973899,91371.0,91358.0,0.0930023]
[1767799409529,0.09312,91380.0,91338.0,0.783237]
[1767799409530,0.010955,91358.0,91338.0,0.09312]
[1767799409739,0.08973899,91357.0,91338.0,0.09312]
[1767799410139,0.03751306,91364.0,91338.0,0.09312]
[1767799410140,0.08973899,91353.0,91338.0,0.09312]
[1767799410335,0.08973899,91353.0,91319.0,0.09507879]
[1767799410336,0.08973899,91353.0,91326.0,0.010959]
[1767799410552,0.08973899,91351.0,91329.0,0.010959]
[1767799410737,0.08973899,91351.0,91332.0,0.010958]
[1767799411037,0.08973899,91351.0,91333.0,0.09312]
[1767799411237,0.08973899,91351.0,91328.0,0.010959]
[1767799411430,0.08973899,91351.0,82865.0,0.05]
[1767799411431,0.08973899,91351.0,91334.0,0.010958]
[1767799411742,0.09312,91376.0,91348.0,0.010956]
[1767799412035,0.03567706,91373.0,91348.0,0.104076]
[1767799412738,0.010954,91365.0,91348.0,0.09312]
[1767799412930,0.04663106,91369.0,91348.0,0.09312]
[1767799413131,0.03567706,91366.0,91340.0,0.010957]
[1767799413331,0.09312,91365.0,91340.0,0.010957]
[1767799413842,0.09312,91365.0,91339.0,0.09312]
[1767799413843,0.09195331,91364.0,91339.0,0.09312]
[1767799414234,0.09195331,91352.0,91335.0,0.09312]
[1767799414439,0.09195331,91361.0,91334.0,0.09312]
[1767799414740,0.09195331,91361.0,91327.0,0.03567978]
[1767799414741,0.09195331,91358.0,91335.0,0.09312]
[1767799414943,0.09195331,91358.0,91336.0,0.104078]
[1767799415127,0.09195331,91358.0,91336.0,0.010958]
[1767799415327,0.09312,91361.0,91329.0,0.09312]
[1767799415328,0.10290931,91353.0,91329.0,0.09312]
[1767799415628,0.09195331,91353.0,91333.0,0.010958]
[1767799415942,0.09195331,91353.0,91330.0,0.010958]
[1767799416136,0.09195331,91353.0,91329.0,0.09312]
[1767799416342,0.09195331,91351.0,91329.0,0.09312]
[1767799416733,0.09195331,91351.0,91330.0,0.010958]
[1767799416933,0.09195331,91351.0,91329.0,0.09312]
[1767799417128,0.010956,91349.0,91327.0,0.01092703]
[1767799417334,0.13858637,91351.0,91314.0,0.01096]
[1767799417335,0.09195331,91335.0,91314.0,0.01096]
[1767799417548,0.09312,91348.0,91327.0,0.13175547]
[1767799417836,0.09312,91348.0,91329.0,0.13175547]
[1767799418238,0.18507331,91348.0,91322.0,0.13175547]
[1767799418434,0.09312,91348.0,91327.0,0.13175547]
[1767799418744,0.09312,91348.0,91328.0,0.010959]
[1767799418939,0.09195331,91356.0,91333.0,0.010958]
[1767799419136,0.09312,91364.0,91331.0,0.13175547]
[1767799419437,0.09195331,91363.0,91341.0,0.010957]
[1767799419839,0.09195331,91355.0,91324.0,0.010959]
[1767799420143,0.09195331,91350.0,91327.0,0.010959]
[1767799420344,0.10290931,91348.0,91328.0,0.09312]
[1767799420637,0.03567706,91349.0,91314.0,0.13175547]
[1767799420638,0.010957,91346.0,91317.0,0.01096]
[1767799420843,0.09195331,91342.0,91319.0,0.01096]
[1767799421050,0.09195331,91342.0,91320.0,0.09312]
[1767799421533,0.09195331,91342.0,91321.0,0.01096]
[1767799421728,0.09195331,91342.0,91320.0,0.09312]
[1767799422038,0.09195331,91342.0,91320.0,0.10408]
[1767799422237,0.09195331,91342.0,91320.0,0.09312]
[1767799422944,0.09195331,91360.0,91343.0,0.010957]
[1767799423141,0.09195331,91379.0,91350.0,0.13175547]
[1767799423335,0.09195331,91379.0,91342.0,0.010957]
[1767799423336,0.09195331,91379.0,91352.0,0.09607569]
[1767799423536,0.09195331,91377.0,91353.0,0.104116]
[1767799424343,0.09195331,91377.0,91365.0,0.00149823]
[1767799425246,0.49195331,91377.0,91371.0,0.00149823]
[1767799425463,0.09195331,91377.0,91371.0,0.00149823]
[1767799425635,0.09195331,91396.0,91371.0,0.00149823]
[1767799425943,0.09195331,91396.0,91379.0,0.010953]
[1767799426242,0.09195331,91406.0,91387.0,0.00149823]
[1767799426440,0.18511331,91406.0,91387.0,0.00149823]
[1767799426643,0.09195331,91405.0,91387.0,0.00149823]
[1767799426844,0.09195331,91404.0,91387.0,0.00149823]
[1767799427238,0.09195331,91404.0,91381.0,0.010952]
[1767799427438,0.09195331,91404.0,91395.0,0.00149823]
[1767799428341,0.09195331,91404.0,91399.0,0.00149823]
[1767799428744,0.09195331,91404.0,91374.0,0.20018869]
[1767799429048,0.010948,91414.0,91389.0,0.09607569]
[1767799429342,0.010948,91414.0,91380.0,0.03567978]
[1767799429343,0.09195331,91407.0,91388.0,0.09312]
[1767799430043,0.010949,91406.0,91388.0,0.09312]
[1767799430248,0.10290231,91406.0,91388.0,0.09312]
[1767799430644,0.09195331,91406.0,91388.0,0.09312]
[1767799432455,0.09195331,91406.0,91388.0,0.104071]
[1767799432648,0.09195331,91422.0,91393.0,0.09607569]
[1767799432846,0.09195331,91422.0,91388.0,0.49312]
[1767799432847,0.09195331,91433.0,91406.0,0.13175547]
[1767799433051,0.03567706,91446.0,91400.0,0.14716705]
[1767799433052,0.09195331,91442.0,91409.0,0.13175547]
[1767799433349,0.09195331,91429.0,91407.0,0.09312]
[1767799433650,0.09195331,91427.0,91407.0,0.09312]
[1767799434647,0.09195331,91427.0,91408.0,0.010949]
[1767799435055,0.09312,91434.0,91408.0,0.010949]
[1767799435244,0.09312,91434.0,91407.0,0.09312]
[1767799435245,0.09312,91434.0,91411.0,0.010949]
[1767799435949,0.09414057,91439.0,91416.0,0.010948]
[1767799436248,0.09195331,91438.0,91407.0,0.09312]
[1767799436449,0.09195331,91432.0,91402.0,0.14270547]
[1767799436643,0.09195331,91432.0,91403.0,0.09312]
[1767799436843,0.12763037,91432.0,91398.0,0.01095]
[1767799437048,0.09312,91438.0,91393.0,0.13175547]
[1767799437049,0.12763037,91425.0,91393.0,0.010951]
[1767799437245,0.12763037,91425.0,91394.0,0.09312]
[1767799437246,0.09195331,91417.0,91394.0,0.09312]
[1767799437548,0.09195331,91417.0,91390.0,0.010951]
[1767799437747,0.09195331,91417.0,91384.0,0.13175547]
[1767799437748,0.09195331,91410.0,91382.0,0.010952]
[1767799437948,0.10290231,91409.0,91383.0,0.09312]
[1767799438553,0.10290231,91409.0,91384.0,0.09312]
[1767799438850,0.09195331,91409.0,91384.0,0.09312]
[1767799440254,0.10290231,91409.0,91384.0,0.09312]
[1767799440469,0.01095,91401.0,91384.0,0.09312]
[1767799440856,0.01095,91404.0,91384.0,0.09312]
[1767799441040,0.09165202,91407.0,91384.0,0.09312]
[1767799441246,0.09165202,91400.0,91369.0,0.010954]
[1767799441448,0.09165202,91400.0,91368.0,0.03181839]
[1767799441449,0.09165202,91390.0,91370.0,0.09312]
[1767799441654,0.09165202,91390.0,91345.0,0.010957]
[1767799441655,0.09165202,91390.0,91367.0,0.09312]
[1767799441852,0.09312,91395.0,91368.0,0.09312]
[1767799442053,0.09516352,91408.0,91383.0,0.010952]
[1767799442248,0.09516352,91408.0,91378.0,0.12943165]
[1767799442249,0.010949,91407.0,91384.0,0.09312]
[1767799442445,0.10611352,91402.0,91385.0,0.09312]
[1767799442658,0.09516352,91402.0,91386.0,0.09312]
[1767799442846,0.09312,91409.0,91386.0,0.09312]
[1767799443051,0.09516352,91409.0,91386.0,0.09312]
[1767799443250,0.3187,91438.0,91397.0,0.01095]
[1767799443251,0.09516352,91420.0,91397.0,0.01095]
[1767799443555,0.010947,91428.0,91403.0,0.01095]
[1767799443759,0.09312,91427.0,91403.0,0.01095]
[1767799444054,0.010947,91428.0,91400.0,0.09312]
[1767799444055,0.010947,91428.0,91402.0,0.01095]
[1767799444259,0.010947,91426.0,91400.0,0.09312]
[1767799444957,0.010949,91409.0,91385.0,0.010952]
[1767799445164,0.09516352,91409.0,91388.0,0.09312]
[1767799445655,0.010949,91408.0,91388.0,0.09312]
[1767799445867,0.01095,91405.0,91388.0,0.09312]
[1767799446059,0.09516352,91407.0,91388.0,0.09312]
[1767799447146,0.09516352,91407.0,91380.0,0.1203]
[1767799447351,0.09516352,91397.0,91380.0,0.09308]
[1767799447654,0.19309892,91410.0,91361.0,0.10619703]
[1767799447655,0.10611452,91390.0,91372.0,0.09308]
[1767799447856,0.24024705,91400.0,91362.0,0.010955]
[1767799447857,0.10611552,91388.0,91362.0,0.010955]
[1767799448060,0.10611552,91388.0,91364.0,0.010954]
[1767799448262,0.10611552,91388.0,91365.0,0.09308]
[1767799448451,0.10611552,91386.0,91365.0,0.09308]
[1767799448656,0.09516352,91382.0,91358.0,0.010955]
[1767799448851,0.09308,91381.0,91360.0,0.010955]
[1767799449653,0.09308,91381.0,91357.0,0.104035]
[1767799450256,0.09308,91381.0,91359.0,0.010955]
[1767799450649,0.010953,91379.0,91357.0,0.09308]
[1767799450957,0.01095,91398.0,91357.0,0.09308]
[1767799450958,0.09312,91402.0,91373.0,0.03419116]
[1767799451157,0.01095,91402.0,91377.0,0.010953]
[1767799451362,0.01095,91402.0,91376.0,0.09524049]
[1767799451363,0.09312,91404.0,91376.0,0.09524049]
[1767799451560,0.03498287,91423.0,91382.0,0.03419116]
[1767799451758,0.09516352,91419.0,91387.0,0.010952]
[1767799452065,0.010949,91409.0,91386.0,0.18836049]
[1767799452261,0.010949,91409.0,91386.0,0.08836049]
[1767799452459,0.010949,91412.0,91386.0,0.08836049]